Cogmind - Beta 15 @@@ ROGUE MODE // 2025.06.30 @ 20:52:37 Player: Not_Jesus8 Result: Self-destructed Performance ------------- Evolutions (3) 1500 Regions Visited (7) 1400 Robots Destroyed (21) 105 Value Destroyed (196) 196 Prototype IDs (24) 480 Alien Tech Used (0) 0 Bonus (300) 300 TOTAL SCORE: 3981 Bonus ------- Aligned with FarCom 300 Cogmind --------- Core Integrity 683/700 Matter 290/300 Energy 13/100 System Corruption 0% Temperature Cool (0) Movement Rolling (200) Ox8 Location -7/Lower Caves Parts ------- > --- POWER (1) -------- (None) > --- PROPULSION (6) --- Wheel > --- UTILITY (4) ------ Huge Storage Unit Structural Scanner > --- WEAPON (2) ------- Heavy Particle Gun > --- INVENTORY (25) --- Micro Nuclear Core Wheel Wheel Wheel Wheel Wheel Xenon Bombardment Thruster Humpback Medium Matter Pod (100) Structural Scanner Terrain Scanner Terrain Scan Processor Advanced Targeting Computer Advanced Targeting Computer Advanced Targeting Computer Advanced Targeting Computer Hacking Suite PSU Rigger Heavy Hammer Peak State ------------ > --- POWER ------------ Light Ion Engine > --- PROPULSION ------- Wheel Wheel Wheel Compact Wheel Compact Wheel Compact Wheel > --- UTILITY ---------- Huge Storage Unit Advanced Targeting Computer > --- WEAPON ----------- Shock Rifle Heavy Particle Gun > --- INVENTORY -------- Humpback Medium Matter Pod Structural Scanner Advanced Targeting Computer Advanced Targeting Computer Advanced Targeting Computer Advanced Targeting Computer Light Armor Plating PSU Rigger Heavy Hammer [Rating: 20] Favorites ----------- Power Light Ion Engine Engine Light Ion Engine Propulsion Compact Wheel Wheel Compact Wheel Utility Huge Storage Unit Device Seismic Detector Storage Huge Storage Unit Processor Advanced Targeting Computer Protection Light Armor Plating Weapon Heavy Particle Gun Energy Gun Heavy Particle Gun Ballistic Gun Assault Rifle Impact Weapon Heavy Hammer Build | -11 -10 -10 -10 -9 -8 -7 -7 ------- Run | Yrd Mat Min Exi Min Mat Fac Low Slots Evolved 6 | . . . . . 4 2 . Power . | . . . . . . . . Propulsion 4 | . . . . . 4 . . Utility 2 | . . . . . . 2 . Weapon . | . . . . . . . . Parts Attached 22 | 7 . . . . 13 2 . Power 2 | 1 . . . . 1 . . Engine 2 | 1 . . . . 1 . . Core . | . . . . . . . . Reactor . | . . . . . . . . Propulsion 9 | 2 . . . . 7 . . Treads . | . . . . . . . . Leg . | . . . . . . . . Wheel 9 | 2 . . . . 7 . . Hover . | . . . . . . . . Flight . | . . . . . . . . Utility 6 | 2 . . . . 3 1 . Device 2 | 1 . . . . . 1 . Storage 2 | 1 . . . . 1 . . Processor 1 | . . . . . 1 . . Hackware . | . . . . . . . . Protection 1 | . . . . . 1 . . Artifact . | . . . . . . . . Weapon 5 | 2 . . . . 2 1 . Energy Gun 2 | . . . . . 2 . . Energy Cannon . | . . . . . . . . Ballistic Gun 2 | 2 . . . . . . . Ballistic Cannon . | . . . . . . . . Launcher . | . . . . . . . . Special Weapon . | . . . . . . . . Impact Weapon 1 | . . . . . . 1 . Slashing Weapon . | . . . . . . . . Piercing Weapon . | . . . . . . . . Special Melee Weapon . | . . . . . . . . Unidentified Prototypes 1 | . . . . . 1 . . Parts Lost 10 | . . . . 2 . 1 7 Power 1 | . . . . . . . 1 Propulsion 7 | . . . . 2 . . 5 Utility 1 | . . . . . . 1 . Weapon 1 | . . . . . . . 1 Highest Loss Streak 7 | . . . . 2 . 1 7 To Critical Strikes . | . . . . . . . . Average Backups 8 | . 1 2 4 5 8 14 19 Power . | . . . 1 1 . . 1 Propulsion . | . . . . . . 2 6 Utility 5 | . . 1 1 3 6 10 11 Weapon . | . 1 1 1 1 1 1 1 Tool/Special . | . . . . . . . . Unused Backups 21 | . . . . 3 1 . 17 Power 3 | . . . . 2 . . 1 Propulsion 6 | . . . . . 1 . 5 Utility 11 | . . . . . . . 11 Weapon 1 | . . . . 1 . . . Tool/Special . | . . . . . . . . Average Slot Usage (%) 75 | . 100 100 100 60 57 89 70 Engine 7 | . 14 14 14 8 3 7 2 Wheel 30 | . 28 28 28 15 26 46 38 Device 5 | . 14 14 14 8 . 7 7 Storage 9 | . 14 14 14 8 8 7 7 Processor 2 | . . . . . 4 . . Protection 1 | . . . . . . 4 . Energy Gun 9 | . . . . . 13 14 14 Ballistic Gun 7 | . 28 28 28 17 . . . Peak Build Rating 20 | 7 7 7 9 9 20 20 20 Average Rating 12 | 5 7 7 8 5 13 19 18 On Entrance 8 | . 7 7 7 9 1 19 20 Naked Turns 56 | . . . . 31 25 . . Heaviest Build 93 | 14 14 14 14 14 92 93 90 Greatest Support 78 | 32 32 32 32 32 78 78 78 Greatest Overweight (x) 8 | . . . . . 8 1 2 Average Overweight (x) 1 | . . . . . 3 1 1 Largest Inventory Capacity 25 | 8 8 8 8 8 25 25 25 Average Capacity 18 | 7 8 8 8 6 23 25 25 Most Carried 20 | 1 2 5 8 8 13 20 20 Average Carried 9 | . 1 3 7 6 9 15 20 Final Capacity 25 | 8 8 8 8 5 25 25 25 Final Carried 20 | 1 2 5 8 5 13 20 20 Class Distribution -------------------- 58% | Mutant 41% | Scavenger-Mutant Dominant Class ---------------- Mutant | -10/Materials Mutant | -10/Mines Mutant | -10/Exiles Mutant | -9/Mines Mutant | -8/Materials Scavenger-Mutant | -7/Factory Scavenger-Mutant | -7/Lower Caves Resources | -11 -10 -10 -10 -9 -8 -7 -7 ----------- Run | Yrd Mat Min Exi Min Mat Fac Low Matter Collected 520 | 218 . . . 50 252 . . Remotely . | . . . . . . . . Salvage Created 763 | 27 . 50 . . 512 174 . Parts 52 | 4 . 2 . . 34 12 . Haulers Intercepted 1 | . . . . . 1 . . Recyclers Shooed 2 | . . . . . 2 . . Parts Field Recycled . | . . . . . . . . Retrieved Matter . | . . . . . . . . Parts Self-Destructed 8 | . . . . . . . 8 Prevented . | . . . . . . . . Kills | -11 -10 -10 -10 -9 -8 -7 -7 ------- Run | Yrd Mat Min Exi Min Mat Fac Low Combat Hostiles Destroyed 1 | . . 1 . . . . . Guns 1 | . . 1 . . . . . Classes Destroyed 7 | 1 . 1 . . 4 1 . Worker 6 | . . . . . 5 1 . Builder 5 | . . . . . 3 2 . Tunneler 1 | 1 . . . . . . . Hauler 1 | . . . . . 1 . . Recycler 5 | . . . . . 4 1 . Operator 2 | . . . . . . 2 . Grunt 1 | . . 1 . . . . . Best Kill Streak 2 | 1 . 1 . . 2 2 . Combat Bots Only 1 | . . 1 . . . . . Max Kills in Single Turn 1 | 1 . 1 . . 1 1 . Gunslinging . | . . . . . . . . Exploded . | . . . . . . . . Melee . | . . . . . . . . Uniques/NPCs Destroyed . | . . . . . . . . Combat | -11 -10 -10 -10 -9 -8 -7 -7 -------- Run | Yrd Mat Min Exi Min Mat Fac Low Hostile Shots Fired 49 | . . 1 . 10 . . 38 Missed 15 | . . . . 2 . . 13 Hits 34 | . . 1 . 8 . . 25 Projectile 34 | . . 1 . 8 . . 25 AOE 5 | . . . . 5 . . . Damage Taken 820 | . . 15 . 249 . 158 398 Core 76 | . . . . 59 . . 17 Absorbed by Shields . | . . . . . . . . Core Remaining (%) 92 | 100 . . . 76 100 . . Volleys Fired 46 | 3 . 2 . . 24 14 3 Largest 2 | 2 . 2 . . 2 2 2 Hottest 105 | 40 . 40 . . 105 105 105 Shots Fired 81 | 6 . 4 . . 39 28 4 Gun 81 | 6 . 4 . . 39 28 4 Cannon . | . . . . . . . . Launcher . | . . . . . . . . Special . | . . . . . . . . Kinetic 10 | 6 . 4 . . . . . Thermal 41 | . . . . . 24 14 3 Explosive . | . . . . . . . . Electromagnetic 30 | . . . . . 15 14 1 Robot Hit Streak 14 | 5 . 9 . . 14 6 . Robot Miss Streak 4 | 1 . . . . 3 4 4 Penetration Max . | . . . . . . . . Secondary Targets . | . . . . . . . . Shots Hit Robots 45 | 5 . 4 . . 24 12 . Core Hits 24 | 2 . 2 . . 13 7 . Critical Kills . | . . . . . . . . Critical Parts Destroyed . | . . . . . . . . Critical Strikes 2 | . . . . . 1 1 . Burn 1 | . . . . . 1 . . Corrupt 1 | . . . . . . 1 . Melee Attacks 2 | . . . . . . 2 . Impact 2 | . . . . . . 2 . Slashing . | . . . . . . . . Piercing . | . . . . . . . . Sneak Attacks . | . . . . . . . . Combat Hostiles . | . . . . . . . . Follow-up Attacks . | . . . . . . . . Damage Inflicted 896 | 53 . 44 . . 461 338 . Guns 760 | 53 . 44 . . 440 223 . Cannons . | . . . . . . . . Explosions 136 | . . . . . 21 115 . Melee . | . . . . . . . . Ramming . | . . . . . . . . Kinetic 97 | 53 . 44 . . . . . Thermal 519 | . . . . . 316 203 . Explosive . | . . . . . . . . Electromagnetic 280 | . . . . . 145 135 . Impact . | . . . . . . . . Slashing . | . . . . . . . . Piercing . | . . . . . . . . Highest Corruption . | . . . . . . . . Average Corruption . | . . . . . . . . Corruption Purged . | . . . . . . . . Corruption Blocked . | . . . . . . . . Overload Shots . | . . . . . . . . Overflow Damage . | . . . . . . . . Projectiles . | . . . . . . . . Explosions . | . . . . . . . . Melee . | . . . . . . . . Knockbacks . | . . . . . . . . Impact . | . . . . . . . . Kinetic . | . . . . . . . . Secondary . | . . . . . . . . Self-Inflicted Damage 116 | . . . . . . 116 . Shots 2 | . . . . . . 2 . Rammed . | . . . . . . . . Targets Rammed . | . . . . . . . . Kicked . | . . . . . . . . Crushed . | . . . . . . . . Highest Temperature 108 | . . 9 . . 72 108 3 Average Temperature 27 | . . 9 . . 20 35 2 Received Heat Transfer 72 | . . 9 . . . . 63 Siege Activations . | . . . . . . . . Martial Activations . | . . . . . . . . Shielding Activations . | . . . . . . . . Robots Disrupted . | . . . . . . . . Combat Hostiles . | . . . . . . . . Robots Corrupted . | . . . . . . . . Combat Hostiles . | . . . . . . . . Parts Fried 1 | . . . . . . 1 . Impact Corruptions . | . . . . . . . . Robots Melted . | . . . . . . . . Combat Hostiles . | . . . . . . . . Parts Melted . | . . . . . . . . Heat Transferred 1001 | . . . . . 716 285 . Parts Sabotaged . | . . . . . . . . Parts Stolen . | . . . . . . . . Parts Stripped . | . . . . . . . . Power Chain Reactions 3 | . . . . . 1 2 . Alert | -11 -10 -10 -10 -9 -8 -7 -7 ------- Run | Yrd Mat Min Exi Min Mat Fac Low Maximum Alert Level . | . . . . . . . . Low Security (%) 100 | 100 100 100 . 100 100 100 . Level 1 . | . . . . . . . . Level 2 . | . . . . . . . . Level 3 . | . . . . . . . . Level 4 . | . . . . . . . . Level 5 . | . . . . . . . . High Security . | . . . . . . . . Max Security . | . . . . . . . . Peak Influence 119 | 5 10 20 . 15 12 119 . Initial 5 | . . . . . 5 . . Average 8 | . . 6 . 1 . 33 . Influence Increases 361 | 5 16 20 . 15 70 190 45 Destroy 0b10 Robot/C 20 | . . 20 . . . . . Destroy 0b10 Robot/NC 100 | 5 . . . . 65 30 . Destroy Leader 2 | . . . . . 2 . . Successful Hack 30 | . 16 . . . . 14 . Disable Machine 90 | . . . . . . 90 . Destroy Structure 59 | . . . . . 3 56 . Lose Combat Pursuer 60 | . . . . 15 . . 45 Influence Decreases 346 | 5 16 20 . . 85 101 119 Entered New Map 44 | . . . . . 10 . 34 Time Decay 232 | 5 16 20 . . 75 91 25 Lost Part 70 | . . . . . . 10 60 Squads Dispatched 3 | . 1 . . . 1 1 . Investigation 1 | . 1 . . . . . . Extermination . | . . . . . . . . Reinforcement 2 | . . . . . 1 1 . Assault . | . . . . . . . . Garrison . | . . . . . . . . Intercept . | . . . . . . . . Searches Triggered . | . . . . . . . . Construction Impeded . | . . . . . . . . Haulers Reinforced . | . . . . . . . . Active Scanning Responses . | . . . . . . . . Cargo Convoy Interrupts . | . . . . . . . . Stealth | -11 -10 -10 -10 -9 -8 -7 -7 --------- Run | Yrd Mat Min Exi Min Mat Fac Low Distress Signals 1 | . 1 . . . . . . Communications Jammed . | . . . . . . . . Distress Signals . | . . . . . . . . Times Spotted 19 | . 2 1 . 3 . 3 10 Peak Tracking Total 4 | . 2 1 . 3 1 1 4 Tactical Retreats 2 | . . . . 1 . . 1 Traps | -11 -10 -10 -10 -9 -8 -7 -7 ------- Run | Yrd Mat Min Exi Min Mat Fac Low Traps Triggered 1 | . . . . . . 1 . Indirectly . | . . . . . . . . Trap Hack Attempts . | . . . . . . . . Triggered . | . . . . . . . . Disarmed . | . . . . . . . . Reprogrammed . | . . . . . . . . Reused . | . . . . . . . . Traps Extracted . | . . . . . . . . Installed . | . . . . . . . . Triggered . | . . . . . . . . Most Traps Carried 3 | . . 3 3 1 . . . Machines | -11 -10 -10 -10 -9 -8 -7 -7 ---------- Run | Yrd Mat Min Exi Min Mat Fac Low Machines Disabled 6 | . . . . . . 6 . Max in Single Turn 5 | . . . . . . 5 . Machines Repaired . | . . . . . . . . Machines Dismantled . | . . . . . . . . Machines Sabotaged . | . . . . . . . . Overloaded Fab Kills . | . . . . . . . . Hacking | -11 -10 -10 -10 -9 -8 -7 -7 --------- Run | Yrd Mat Min Exi Min Mat Fac Low Machines Accessed 6 | . 2 . 1 . 1 2 . Terminals 5 | . 2 . . . 1 2 . Fabricators . | . . . . . . . . Repair Stations . | . . . . . . . . Recycling Units . | . . . . . . . . Scanalyzers . | . . . . . . . . Garrison Access . | . . . . . . . . Total Hacks 17 | . 9 . 1 . 3 4 . Successful 9 | . 4 . 1 . 1 3 . Failed 8 | . 5 . . . 2 1 . Catastrophic 1 | . . . . . 1 . . Database Lockouts . | . . . . . . . . Manual 17 | . 9 . 1 . 3 4 . Terminals 16 | . 9 . . . 3 4 . Fabricators . | . . . . . . . . Repair Stations . | . . . . . . . . Recycling Units . | . . . . . . . . Scanalyzers . | . . . . . . . . Garrison Access . | . . . . . . . . Terminal Hacks 4 | . 2 . 1 . . 1 . Branch Access Points 1 | . . . . . . 1 . Terminal Index 1 | . 1 . . . . . . Registered Components 1 | . 1 . . . . . . Proto ID Catalog 1 | . . . 1 . . . . Fabricator Hacks . | . . . . . . . . Repair Station Hacks . | . . . . . . . . Recycling Unit Hacks . | . . . . . . . . Scanalyzer . | . . . . . . . . Garrison Access Hacks . | . . . . . . . . Unauthorized Hacks 5 | . 2 . . . 1 2 . Terminals 5 | . 2 . . . 1 2 . Botnet 5 | . 2 . . . 1 2 . Fabricators . | . . . . . . . . Repair Stations . | . . . . . . . . Recycling Units . | . . . . . . . . Scanalyzers . | . . . . . . . . Garrison Access . | . . . . . . . . Data Cores Recovered . | . . . . . . . . Used . | . . . . . . . . Hacking Detections 4 | . 2 . . . 1 1 . Full Trace Events 2 | . 2 . . . . . . Feedback Events . | . . . . . . . . Feedback Blocked . | . . . . . . . . Robot Schematics Acquired . | . . . . . . . . Robots Built . | . . . . . . . . Authchips . | . . . . . . . . Time . | . . . . . . . . Total Robot Build Rating . | . . . . . . . . Part Schematics Acquired . | . . . . . . . . Parts Built . | . . . . . . . . Authchips . | . . . . . . . . Time . | . . . . . . . . Total Part Build Rating . | . . . . . . . . Parts Repaired . | . . . . . . . . Time . | . . . . . . . . Parts Recycled . | . . . . . . . . Recycled Matter . | . . . . . . . . Retrieved Matter . | . . . . . . . . Retrieved Components . | . . . . . . . . Parts Scanalyzed . | . . . . . . . . Part Schematics Acquired . | . . . . . . . . Parts Damaged . | . . . . . . . . Bothacking | -11 -10 -10 -10 -9 -8 -7 -7 ------------ Run | Yrd Mat Min Exi Min Mat Fac Low Used RIF Installer . | . . . . . . . . Robots Hacked . | . . . . . . . . Non-combat . | . . . . . . . . Combat . | . . . . . . . . Robot Hacks Applied . | . . . . . . . . Relay Couplers Released . | . . . . . . . . Fabnet Peak Effective % . | . . . . . . . . Robots Rewired . | . . . . . . . . Allies Hacked . | . . . . . . . . Hacks Repelled . | . . . . . . . . Allies | -11 -10 -10 -10 -9 -8 -7 -7 -------- Run | Yrd Mat Min Exi Min Mat Fac Low Total Allies . | . . . . . . . . Largest Group . | . . . . . . . . Highest-Rated Group . | . . . . . . . . Highest-Rated Ally . | . . . . . . . . Total Orders . | . . . . . . . . Ally Attacks . | . . . . . . . . Total Damage . | . . . . . . . . Kills . | . . . . . . . . Allies Corrupted . | . . . . . . . . Allies Melted . | . . . . . . . . Intel | -11 -10 -10 -10 -9 -8 -7 -7 ------- Run | Yrd Mat Min Exi Min Mat Fac Low Active Infowar (turns) 1004 | 10 134 84 271 43 . 392 70 Structural 462 | . . . . . . 392 70 Seismic 542 | 10 134 84 271 43 . . . Robot Analysis Total . | . . . . . . . . Derelict Logs Recovered 3 | . . . . 2 . . 1 Drone Launches . | . . . . . . . . Drone Recoveries . | . . . . . . . . Exploration | -11 -10 -10 -10 -9 -8 -7 -7 ------------- Run | Yrd Mat Min Exi Min Mat Fac Low Turns Passed 2010 | 90 134 84 271 74 895 392 70 Spaces Moved 1495 | 72 130 71 266 103 503 290 60 Core 181 | 2 . . . 64 115 . . Treads . | . . . . . . . . Legs . | . . . . . . . . Wheels 1314 | 70 130 71 266 39 388 290 60 Hover . | . . . . . . . . Flight . | . . . . . . . . Fastest Speed 50 | 50 100 100 100 50 50 105 100 Average Speed 109 | 98 100 100 100 68 130 105 104 Slowest Speed 200 | 100 100 100 100 100 200 105 116 Overloaded Moves . | . . . . . . . . Propulsion Burnouts . | . . . . . . . . Robots Hopped . | . . . . . . . . Potential Cave-ins . | . . . . . . . . Cave-ins Triggered . | . . . . . . . . Exploration Rate (%) 23 | 5 22 17 60 34 22 8 18 Regions Visited 7 Branch Regions 4 Pre-discovered Areas . | . . . . . . . . Known Exits Taken 2 | . . . . . 1 1 . Unknown Exits Taken 5 | 1 1 1 1 1 . . . Scrap Searched 1 | . . . . 1 . . . Spaces Dug 2 | . . . . . . 2 . Terrain Destroyed 75 | . . . . . 2 73 . Melee 2 | . . . . . . 2 . Projectile . | . . . . . . . . AOE 73 | . . . . . 2 71 . Terrain Rammed . | . . . . . . . . Walls Destroyed . | . . . . . . . . Machines Disabled . | . . . . . . . . Actions | -11 -10 -10 -10 -9 -8 -7 -7 --------- Run | Yrd Mat Min Exi Min Mat Fac Low Total 1781 | 82 134 80 271 107 700 344 63 Wait 180 | . 4 5 . . 145 26 . Move 1488 | 71 129 70 265 102 502 289 60 Hop . | . . . . . . . . Pick Up 29 | 1 1 3 4 1 11 8 . Fast Attach 18 | 7 . . . . 11 . . Attach 3 | . . . . . 2 1 . Detach . | . . . . . . . . Swap 5 | . . . . . 1 4 . Drop 10 | . . . 2 4 4 . . Fire 46 | 3 . 2 . . 24 14 3 Melee 2 | . . . . . . 2 . Ram . | . . . . . . . . Kick . | . . . . . . . . Crush . | . . . . . . . . Escape Stasis . | . . . . . . . . Rewire . | . . . . . . . . Trap . | . . . . . . . . Miscellaneous . | . . . . . . . . Route ------- -11/Scrapyard -10/Materials -10/Mines -10/Exiles -9/Mines -8/Materials (discovered 2 exits: *Fac x2) -7/Factory (discovered 3 exits: [*Fac] / *Low x2) -7/Lower Caves History --------- Turn | Location | Event 25 | -11/Scrapyard | Discovered new exit (range 15) 91 | -11/Scrapyard | Entered Materials 122 | -10/Materials | Discovered new exit (range 15) 182 | -10/Materials | Met 8R-AWN 225 | -10/Materials | Entered Mines 228 | -10/Mines | Followed 8R-AWN into the Mines 275 | -10/Mines | Found a hidden stash of uninstalled traps 305 | -10/Mines | Discovered new exit (range 5) 309 | -10/Mines | Entered Exiles 311 | -10/Exiles | Build established: Mutant 340 | -10/Exiles | Welcomed by 8R-AWN 357 | -10/Exiles | Met EX-HEX 385 | -10/Exiles | Met EX-BIN 400 | -10/Exiles | Aligned with FarCom system 401 | -10/Exiles | Given EX-Vault access code 425 | -10/Exiles | Opened EX-Vault 432 | -10/Exiles | Found PSU Rigger 454 | -10/Exiles | Warned to stay clear of 0b10 Research branches 508 | -10/Exiles | Met EX-DEC 560 | -10/Exiles | Discovered new exit (range 15) 580 | -10/Exiles | Left Exiles lab with PSU Rigger 580 | -10/Exiles | Entered Mines 598 | -9/Mines | Assembled infested the area 603 | -9/Mines | Assisted by a Guerilla fighting off Assembled 623 | -9/Mines | Released all parts (5) 648 | -9/Mines | Discovered new exit (range 7) 652 | -9/Mines | Learned location of 1 exit from Proximity Caves 654 | -9/Mines | Entered Materials 654 | -8/Materials | Evolved 4 slots: Propulsion x4 655 | -8/Materials | Identified exit to Factory 690 | -8/Materials | Discovered exit to Factory (range 16) 1473 | -8/Materials | Build established: Scavenger-Mutant 1549 | -8/Materials | Entered Factory 1549 | -7/Factory | Evolved 2 slots: Utility x2 1889 | -7/Factory | Discovered new exit (range 12) 1899 | -7/Factory | Discovered new exit (range 9) 1909 | -7/Factory | Identified exit to Lower Caves 1941 | -7/Factory | Entered Lower Caves 1962 | -7/Lower Caves | Learned 4 Factory zone layouts 2011 | -7/Lower Caves | Self-destructed Last Messages --------------- >>Access(Branch) Found 2 branch access points: (96,142) Lower Caves (118,5) Lower Caves Map updated. 01909_ Connecting with Terminal... 01926_ Acquired Xenon Bombardment Thruster. LOCATION=LOWER CAVES GOAL=ESCAPE 01961_ Lgt. Ion Engine destroyed. 01962_ Acquired derelict log, extracted data. Data stored: Factory zone layouts (x4). 01988_ C-30 ARC bursts open, deploying its payload. 01988_ S-27 Virus unfolds itself. 01988_ Com. Wheel destroyed. 02001_ Wheel destroyed. 02006_ Shock Rifle destroyed. 02008_ Com. Wheel destroyed. 02009_ Wheel destroyed. Map ----- +----------------------------------------------------+ | ???????????????????????????????????????###?? ???? | | ?????????????????????????????????????#### ?? #? | | ???????????????????????????????????##### ?? ##? | | ????????????????????????????? ???#### ?# ### | | ???????????????????????????? ??? ### ### | | ???????????????????????????? " ??? ### | | ???????????????????????????? "%####"" ### ??? | | ??????????????????????####??? "###" " ## ??? | | ??????????????????? ##### ?? "" " ??? | | ???????????????????##### ?? # """"" ###?? | | ???????????????????## ??## """""" # #### | | ???????????????????## ### """""" ## #### | | ????????????????? #### ### """ " ## ## | | ????????????????? ##### ## """ # | | ????????????????? ## """""" | | ??????????????????? ""### | | ????????????????????? "#### ### | | ?????????????????????????## #### | | ?????????????????????????### ##### | | ??????????????????????????### ############# | | ??????????????????????????### #######?#### | | ???????????????????????###### #####????## | | ???????????????????????###### ###???## | | ??????????????????????? s ####### ####??## | | ???????????????????????##s####### ###??#### | | ???????????????? " ???##@###### ######## | | ?????????????## """" #s### ## ###??? | | ?????????????## " ## ##??? | | ?????????????## s ##??? | | ?????????????#### #### ### #??? | | ?????????????#### #### #### ####### ???? | | ????????????????????## ? ### ######## ??? | | ???????????????????? ???########????? #####??? | | ???????????????????? ????######??????########??? | | ?????????????????? ????????????????#####?????? | | ??????????????????#####??????????????????????????? | | ??????????????????#####??????????????????????????? | | ?????????????????????????????????????????????????? | | ?????????????????????????????????????????????????? | | ?????????????????????????????????????????????????? | | ?????????????????????????????????????????????????? | | ?????????????????????????????????????????????????? | | ?????????????????????????????????????????????????? | | ?????????????????????????????????????????????????? | | ?????????????????????????????????????????????????? | | ?????????????????????????????????????????????????? | | ?????????????????????????????????????????????????? | | ?????????????????????????????????????????????????? | | ?????????????????????????????????????????????????? | | ?????????????????????????????????????????????????? | +----------------------------------------------------+ Best States ------------- Heat Dissipation 34 Energy Generation 10 Energy Capacity 250 Matter Stores 300 Matter Capacity 300 Sight Range 16 Terrain Scan Density 10 Armor Coverage 150 Evasion (%) 50 Targeting Accuracy 8 Item Schematics ----------------- None Robot Schematics ------------------ None Fabricated ------------ Nothing Repaired ---------- Nothing Alien Tech Used ----------------- None Achievements -------------- I Survived The Infestation Challenges ------------ None Game ------ Seed LargeTransportArticulator Manual? 0 Play Time 00:15:50 Cumulative 9.9 hours Start 2025.06.30 @ 20:29:15 End 2025.06.30 @ 20:52:37 Sessions 1 Manual Loads 0 Difficulty Rogue Special Mode None Game No. 11 Rogue 11 Adventurer 0 Explorer 0 Win Type - Total 1 Types 1/0/0/0/0/0/0/0/0/0 Lore% 28 Gallery% 18 Achievement% 24 Wizard Run 0 Options --------- Layout 1 ASCII 0 Keyboard 1 Movement Arrows Keybinds 0 Fullscreen 1 Font 16/SmallcapsGlow Map View 50x54 Zoom Use 0% Tactical HUD 1 Map Filters NONE Filters NONE Steam 1 RUN: 7fdbff5d-4325-4fd4-9c7f-99e1d6b6a85f